[Event "Early-Titled-Tuesday-Blitz-February-27-2024"]
[Site "Chess.com"]
[Date "2024.02.27"]
[Round "1"]
[White "vladoboch"]
[Black "LikeWater"]
[Result "1-0"]
[WhiteElo "2435"]
[BlackElo "2716"]
[TimeControl "180+1"]
[EndTime "8:08:14 PST"]
[Termination "vladoboch won by checkmate"]

1. e4 {[%clk 0:03:00.9]} 1... c5 {[%clk 0:02:55.4]} 2. Nf3 {[%clk 0:02:56.5]}
2... d6 {[%clk 0:02:55.4]} 3. d4 {[%clk 0:02:46.1]} 3... cxd4 {[%clk 0:02:55.1]}
4. Nxd4 {[%clk 0:02:47]} 4... Nf6 {[%clk 0:02:49.4]} 5. Nc3 {[%clk 0:02:47]}
5... g6 {[%clk 0:02:46.9]} 6. Be2 {[%clk 0:02:39.5]} 6... Bg7 {[%clk 0:02:43.4]}
7. O-O {[%clk 0:02:19.5]} 7... O-O {[%clk 0:02:42]} 8. Bg5 {[%clk 0:02:19.2]}
8... Nc6 {[%clk 0:02:28]} 9. Nb3 {[%clk 0:02:08.4]} 9... a5 {[%clk 0:02:18.6]}
10. a4 {[%clk 0:02:00.1]} 10... Be6 {[%clk 0:02:18]} 11. Kh1 {[%clk 0:01:50.1]}
11... Bxb3 {[%clk 0:01:46.4]} 12. cxb3 {[%clk 0:01:49.2]} 12... Nb4 {[%clk
0:01:39.8]} 13. f4 {[%clk 0:01:40.3]} 13... Nd7 {[%clk 0:01:32.3]} 14. Qd2
{[%clk 0:01:29.8]} 14... Nc5 {[%clk 0:01:30.2]} 15. Bc4 {[%clk 0:01:27.9]} 15...
Bxc3 {[%clk 0:01:05.4]} 16. bxc3 {[%clk 0:01:20.3]} 16... Nxe4 {[%clk
0:01:05.1]} 17. Qe3 {[%clk 0:01:02]} 17... d5 {[%clk 0:00:37]} 18. cxb4 {[%clk
0:00:54.6]} 18... Nxg5 {[%clk 0:00:37.3]} 19. Bd3 {[%clk 0:00:43.6]} 19... Ne6
{[%clk 0:00:28.8]} 20. f5 {[%clk 0:00:44.1]} 20... Ng7 {[%clk 0:00:26.7]} 21.
Rae1 {[%clk 0:00:20.1]} 21... e6 {[%clk 0:00:14.7]} 22. f6 {[%clk 0:00:19.6]}
22... Ne8 {[%clk 0:00:14.8]} 23. Qf4 {[%clk 0:00:14.4]} 23... Kh8 {[%clk
0:00:11.4]} 24. Re3 {[%clk 0:00:13.9]} 24... Qd6 {[%clk 0:00:07.1]} 25. Qh6
{[%clk 0:00:12.3]} 25... Nxf6 {[%clk 0:00:02.8]} 26. Rxf6 {[%clk 0:00:12.2]}
26... Rac8 {[%clk 0:00:02.1]} 27. Rh3 {[%clk 0:00:11.8]} 27... Rc1+ {[%clk
0:00:02.4]} 28. Qxc1 {[%clk 0:00:12.4]} 28... Qe5 {[%clk 0:00:02.1]} 29. Qh6
{[%clk 0:00:10.1]} 29... Qa1+ {[%clk 0:00:01.5]} 30. Rf1 {[%clk 0:00:10.7]}
30... Qg7 {[%clk 0:00:02.1]} 31. Qxg7+ {[%clk 0:00:09.7]} 31... Kxg7 {[%clk
0:00:03]} 32. bxa5 {[%clk 0:00:10.3]} 32... Rc8 {[%clk 0:00:03.4]} 33. a6 {[%clk
0:00:09.6]} 33... bxa6 {[%clk 0:00:02.3]} 34. Bxa6 {[%clk 0:00:10.4]} 34... Rc2
{[%clk 0:00:02.8]} 35. Rhf3 {[%clk 0:00:10.5]} 35... f5 {[%clk 0:00:02.5]} 36.
b4 {[%clk 0:00:10.7]} 36... Rb2 {[%clk 0:00:02.8]} 37. b5 {[%clk 0:00:11]} 37...
e5 {[%clk 0:00:03.5]} 38. Bb7 {[%clk 0:00:10.5]} 38... d4 {[%clk 0:00:03.6]} 39.
Bc6 {[%clk 0:00:09.7]} 39... e4 {[%clk 0:00:03.9]} 40. R3f2 {[%clk 0:00:07.8]}
40... Rb4 {[%clk 0:00:04.2]} 41. a5 {[%clk 0:00:07.8]} 41... e3 {[%clk
0:00:04.8]} 42. Rc2 {[%clk 0:00:07]} 42... d3 {[%clk 0:00:04.7]} 43. Ra2 {[%clk
0:00:04.3]} 43... e2 {[%clk 0:00:04.7]} 44. Kg1 {[%clk 0:00:01.9]} 44... exf1=Q+
{[%clk 0:00:03.8]} 45. Kxf1 {[%clk 0:00:02.7]} 45... Rb1+ {[%clk 0:00:03]} 46.
Kf2 {[%clk 0:00:02.7]} 46... f4 {[%clk 0:00:03.3]} 47. a6 {[%clk 0:00:02.8]}
47... Kf6 {[%clk 0:00:02.5]} 48. a7 {[%clk 0:00:03.2]} 48... Rc1 {[%clk
0:00:02.7]} 49. a8=Q {[%clk 0:00:03.4]} 49... Rc2+ {[%clk 0:00:03.6]} 50. Rxc2
{[%clk 0:00:03.3]} 50... dxc2 {[%clk 0:00:04.5]} 51. Qa1+ {[%clk 0:00:03.7]}
51... Kg5 {[%clk 0:00:05.1]} 52. Qc3 {[%clk 0:00:04.6]} 52... h5 {[%clk
0:00:05.3]} 53. Qxc2 {[%clk 0:00:04.9]} 53... Kh4 {[%clk 0:00:06.2]} 54. Qxg6
{[%clk 0:00:03.9]} 54... f3 {[%clk 0:00:06.5]} 55. Qg3# {[%clk 0:00:04.6]} 1-0

[Event "Early-Titled-Tuesday-Blitz-February-27-2024"]
[Site "Chess.com"]
[Date "2024.02.27"]
[Round "1"]
[White "kingofthenil"]
[Black "JoliyRoger"]
[Result "1-0"]
[WhiteElo "2737"]
[BlackElo "2420"]
[TimeControl "180+1"]
[EndTime "8:08:15 PST"]
[Termination "kingofthenil won on time"]

1. Nf3 {[%clk 0:02:11.6]} 1... Nf6 {[%clk 0:02:58.4]} 2. b3 {[%clk 0:02:12]}
2... c5 {[%clk 0:02:58.6]} 3. Bb2 {[%clk 0:02:12.4]} 3... Nc6 {[%clk 0:02:59]}
4. e3 {[%clk 0:02:12.3]} 4... a6 {[%clk 0:02:59.3]} 5. c4 {[%clk 0:02:09.2]}
5... e6 {[%clk 0:02:59.6]} 6. Be2 {[%clk 0:02:06.9]} 6... Be7 {[%clk 0:02:59.4]}
7. O-O {[%clk 0:02:07.1]} 7... O-O {[%clk 0:03:00]} 8. d4 {[%clk 0:02:07.8]}
8... cxd4 {[%clk 0:03:00.3]} 9. Nxd4 {[%clk 0:02:08.7]} 9... Qc7 {[%clk
0:03:00]} 10. Nd2 {[%clk 0:02:08.4]} 10... Ne5 {[%clk 0:03:00.6]} 11. Rc1 {[%clk
0:02:05.5]} 11... d6 {[%clk 0:03:00.4]} 12. f4 {[%clk 0:01:50.5]} 12... Ng6
{[%clk 0:02:58.6]} 13. g4 {[%clk 0:01:45.1]} 13... h6 {[%clk 0:02:53]} 14. Bd3
{[%clk 0:01:43.9]} 14... Re8 {[%clk 0:02:38.3]} 15. g5 {[%clk 0:01:42.1]} 15...
hxg5 {[%clk 0:02:30.4]} 16. fxg5 {[%clk 0:01:43]} 16... Nh7 {[%clk 0:02:25.6]}
17. h4 {[%clk 0:01:34.6]} 17... Ne5 {[%clk 0:01:28.1]} 18. Bxh7+ {[%clk
0:00:43.3]} 18... Kxh7 {[%clk 0:01:28.1]} 19. Qh5+ {[%clk 0:00:43.7]} 19... Kg8
{[%clk 0:01:28.5]} 20. Ne4 {[%clk 0:00:44.1]} 20... Qd8 {[%clk 0:01:03.7]} 21.
Rc2 {[%clk 0:00:22.3]} 21... d5 {[%clk 0:00:58.2]} 22. Rcf2 {[%clk 0:00:11.1]}
22... g6 {[%clk 0:00:52.9]} 23. Qe2 {[%clk 0:00:01.7]} 23... Bd6 {[%clk
0:00:53.3]} 24. Nxd6 {[%clk 0:00:01.3]} 24... Qxd6 {[%clk 0:00:53.1]} 25. Nf3
{[%clk 0:00:01.9]} 25... Ng4 {[%clk 0:00:43.4]} 26. Rg2 {[%clk 0:00:02.1]} 26...
e5 {[%clk 0:00:37.1]} 27. cxd5 {[%clk 0:00:02.6]} 27... e4 {[%clk 0:00:30.1]}
28. Nd2 {[%clk 0:00:03.3]} 28... Qxd5 {[%clk 0:00:25.6]} 29. Nc4 {[%clk
0:00:03.3]} 29... Qe6 {[%clk 0:00:14]} 30. Rf4 {[%clk 0:00:01.5]} 30... b5
{[%clk 0:00:13.1]} 31. Rgxg4 {[%clk 0:00:01.5]} 31... bxc4 {[%clk 0:00:12.6]}
32. Rg2 {[%clk 0:00:02.2]} 32... c3 {[%clk 0:00:08.3]} 33. Bxc3 {[%clk
0:00:02.2]} 33... Bb7 {[%clk 0:00:09]} 34. Bd4 {[%clk 0:00:02.1]} 34... Rac8
{[%clk 0:00:09.1]} 35. Kh2 {[%clk 0:00:01.9]} 35... Rc1 {[%clk 0:00:07.9]} 36.
Qf2 {[%clk 0:00:02.3]} 36... Rec8 {[%clk 0:00:07.3]} 37. Qg3 {[%clk 0:00:02.8]}
37... R1c2 {[%clk 0:00:07]} 38. Rgf2 {[%clk 0:00:03]} 38... Rxf2+ {[%clk
0:00:06.7]} 39. Qxf2 {[%clk 0:00:03.9]} 39... Bd5 {[%clk 0:00:05.9]} 40. Kg3
{[%clk 0:00:04.4]} 40... Qc6 {[%clk 0:00:04.6]} 41. Rf6 {[%clk 0:00:03.6]} 41...
Be6 {[%clk 0:00:04.8]} 42. Qf4 {[%clk 0:00:02.7]} 42... Qc7 {[%clk 0:00:04.7]}
43. Qxc7 {[%clk 0:00:02.6]} 43... Rxc7 {[%clk 0:00:05]} 44. h5 {[%clk
0:00:03.2]} 44... gxh5 {[%clk 0:00:02.8]} 45. g6 {[%clk 0:00:04.1]} 45... Rd7
{[%clk 0:00:02.2]} 46. g7 {[%clk 0:00:04.7]} 46... Rd5 {[%clk 0:00:01.6]} 47.
Rh6 {[%clk 0:00:04.5]} 47... f6 {[%clk 0:00:01.2]} 48. Bxf6 {[%clk 0:00:04.1]}
48... Kf7 {[%clk 0:00:01.9]} 49. Bd4 {[%clk 0:00:03.5]} 1-0

[Event "Early-Titled-Tuesday-Blitz-February-27-2024"]
[Site "Chess.com"]
[Date "2024.02.27"]
[Round "1"]
[White "ValentinDragnev"]
[Black "Piotrek1979"]
[Result "1-0"]
[WhiteElo "2757"]
[BlackElo "2432"]
[TimeControl "180+1"]
[EndTime "8:08:16 PST"]
[Termination "ValentinDragnev won on time"]

1. d4 {[%clk 0:02:52.7]} 1... c5 {[%clk 0:03:00.3]} 2. d5 {[%clk 0:02:51.1]}
2... d6 {[%clk 0:02:56.4]} 3. Nc3 {[%clk 0:02:50.6]} 3... a6 {[%clk 0:02:55.1]}
4. a4 {[%clk 0:02:50.3]} 4... g6 {[%clk 0:02:55.4]} 5. e4 {[%clk 0:02:48.1]}
5... Bg7 {[%clk 0:02:55.9]} 6. Be2 {[%clk 0:02:32.6]} 6... Nf6 {[%clk
0:02:55.6]} 7. Nf3 {[%clk 0:02:32.2]} 7... Bg4 {[%clk 0:02:54.5]} 8. Nd2 {[%clk
0:02:31.4]} 8... Bxe2 {[%clk 0:02:54.1]} 9. Qxe2 {[%clk 0:02:32.3]} 9... O-O
{[%clk 0:02:53.3]} 10. Nc4 {[%clk 0:02:31.2]} 10... Nbd7 {[%clk 0:02:42.3]} 11.
a5 {[%clk 0:02:31.1]} 11... b5 {[%clk 0:02:40.8]} 12. axb6 {[%clk 0:02:31.1]}
12... Nxb6 {[%clk 0:02:40.7]} 13. O-O {[%clk 0:02:28.8]} 13... Nfd7 {[%clk
0:02:37.4]} 14. Na5 {[%clk 0:02:23.3]} 14... Qc7 {[%clk 0:02:28.8]} 15. Nc6
{[%clk 0:02:22.9]} 15... e6 {[%clk 0:02:17.8]} 16. Rxa6 {[%clk 0:02:16.7]} 16...
Rxa6 {[%clk 0:01:37.5]} 17. Qxa6 {[%clk 0:02:17.6]} 17... Bxc3 {[%clk
0:01:29.2]} 18. bxc3 {[%clk 0:02:18.5]} 18... exd5 {[%clk 0:01:26.7]} 19. Ne7+
{[%clk 0:02:18.4]} 19... Kg7 {[%clk 0:01:24.4]} 20. Nxd5 {[%clk 0:02:16.4]}
20... Nxd5 {[%clk 0:01:23.6]} 21. exd5 {[%clk 0:02:17.3]} 21... Re8 {[%clk
0:01:04]} 22. c4 {[%clk 0:02:10.1]} 22... Kg8 {[%clk 0:00:42.9]} 23. Bf4 {[%clk
0:02:05.1]} 23... Ne5 {[%clk 0:00:40.8]} 24. Rb1 {[%clk 0:02:03]} 24... Qe7
{[%clk 0:00:27.7]} 25. h3 {[%clk 0:02:00.6]} 25... Qf6 {[%clk 0:00:27.5]} 26.
Bg3 {[%clk 0:01:58.5]} 26... h5 {[%clk 0:00:26.2]} 27. h4 {[%clk 0:01:26.7]}
27... g5 {[%clk 0:00:20.5]} 28. hxg5 {[%clk 0:01:18]} 28... Qxg5 {[%clk
0:00:20.6]} 29. Qxd6 {[%clk 0:01:18.6]} 29... Nxc4 {[%clk 0:00:20.6]} 30. Qf4
{[%clk 0:01:15.4]} 30... Qxd5 {[%clk 0:00:17.8]} 31. Bh4 {[%clk 0:01:08.4]}
31... Re4 {[%clk 0:00:14.3]} 32. Rb8+ {[%clk 0:00:49.6]} 32... Kh7 {[%clk
0:00:13.8]} 33. Qf6 {[%clk 0:00:48.4]} 33... Qd1+ {[%clk 0:00:11.5]} 34. Kh2
{[%clk 0:00:48.7]} 34... Qd6+ {[%clk 0:00:12.3]} 35. Qxd6 {[%clk 0:00:20.5]}
35... Nxd6 {[%clk 0:00:13.2]} 36. Bf6 {[%clk 0:00:21.1]} 36... Nf5 {[%clk
0:00:13.2]} 37. Rc8 {[%clk 0:00:18.2]} 37... Kg6 {[%clk 0:00:13.1]} 38. Bb2
{[%clk 0:00:13.5]} 38... Rc4 {[%clk 0:00:13.6]} 39. Rc6+ {[%clk 0:00:12.8]}
39... Kh7 {[%clk 0:00:12.7]} 40. c3 {[%clk 0:00:12.5]} 40... Ng7 {[%clk
0:00:10]} 41. Rc7 {[%clk 0:00:12.2]} 41... Kg6 {[%clk 0:00:09.3]} 42. Rc6+
{[%clk 0:00:12.6]} 42... Ne6 {[%clk 0:00:10]} 43. f3 {[%clk 0:00:11.1]} 43...
Kf5 {[%clk 0:00:10.6]} 44. Rc8 {[%clk 0:00:10.8]} 44... f6 {[%clk 0:00:11.3]}
45. Rh8 {[%clk 0:00:10.8]} 45... Kg6 {[%clk 0:00:11.9]} 46. Rg8+ {[%clk
0:00:11.1]} 46... Kf7 {[%clk 0:00:12.1]} 47. Rh8 {[%clk 0:00:10.4]} 47... Kg6
{[%clk 0:00:12.6]} 48. Ra8 {[%clk 0:00:11.3]} 48... Kf7 {[%clk 0:00:12.6]} 49.
Ra6 {[%clk 0:00:11.1]} 49... Ng5 {[%clk 0:00:11.1]} 50. Ra1 {[%clk 0:00:09.2]}
50... Ne6 {[%clk 0:00:11.5]} 51. Kg3 {[%clk 0:00:08.5]} 51... Ng7 {[%clk
0:00:12]} 52. Kf2 {[%clk 0:00:08.6]} 52... Nf5 {[%clk 0:00:12.6]} 53. Ke2 {[%clk
0:00:08.7]} 53... Rh4 {[%clk 0:00:12.1]} 54. Ra5 {[%clk 0:00:07.7]} 54... Rh2
{[%clk 0:00:08.4]} 55. Kf2 {[%clk 0:00:07.8]} 55... h4 {[%clk 0:00:08]} 56. Kg1
{[%clk 0:00:08.2]} 56... Rxg2+ {[%clk 0:00:01.1]} 57. Kxg2 {[%clk 0:00:09.1]}
1-0

[Event "Early-Titled-Tuesday-Blitz-February-27-2024"]
[Site "Chess.com"]
[Date "2024.02.27"]
[Round "1"]
[White "Mikasinski"]
[Black "ClauSanLuis"]
[Result "1-0"]
[WhiteElo "2664"]
[BlackElo "2330"]
[TimeControl "180+1"]
[EndTime "8:08:16 PST"]
[Termination "Mikasinski won by checkmate"]

1. e4 {[%clk 0:03:00.9]} 1... c5 {[%clk 0:02:59]} 2. Nf3 {[%clk 0:02:58.8]} 2...
Nc6 {[%clk 0:02:59.5]} 3. c3 {[%clk 0:02:17.5]} 3... Nf6 {[%clk 0:02:55.9]} 4.
e5 {[%clk 0:02:13.1]} 4... Nd5 {[%clk 0:02:56.4]} 5. d4 {[%clk 0:02:10.4]} 5...
cxd4 {[%clk 0:02:55.4]} 6. Bc4 {[%clk 0:02:09.9]} 6... Nb6 {[%clk 0:02:53.9]} 7.
Bb3 {[%clk 0:02:10.3]} 7... e6 {[%clk 0:02:51.7]} 8. cxd4 {[%clk 0:02:07.2]}
8... d6 {[%clk 0:02:44.1]} 9. O-O {[%clk 0:01:58.5]} 9... dxe5 {[%clk
0:02:43.2]} 10. dxe5 {[%clk 0:01:49.3]} 10... Qxd1 {[%clk 0:02:27.2]} 11. Rxd1
{[%clk 0:01:48.3]} 11... Bc5 {[%clk 0:02:27.2]} 12. Nc3 {[%clk 0:01:47]} 12...
O-O {[%clk 0:02:07.7]} 13. Ne4 {[%clk 0:01:47.3]} 13... Be7 {[%clk 0:01:56.3]}
14. Bg5 {[%clk 0:01:45.5]} 14... Bd7 {[%clk 0:01:37.5]} 15. Bxe7 {[%clk
0:01:42.6]} 15... Nxe7 {[%clk 0:01:37.2]} 16. Nd6 {[%clk 0:01:39.3]} 16... Bc6
{[%clk 0:01:36.2]} 17. Nd4 {[%clk 0:01:39.8]} 17... a5 {[%clk 0:00:46.6]} 18.
Rac1 {[%clk 0:01:37]} 18... a4 {[%clk 0:00:44.6]} 19. Bc2 {[%clk 0:01:37.5]}
19... Bd5 {[%clk 0:00:43.6]} 20. a3 {[%clk 0:01:34.7]} 20... Nc6 {[%clk
0:00:43.1]} 21. Nxc6 {[%clk 0:01:32.3]} 21... bxc6 {[%clk 0:00:43.7]} 22. Be4
{[%clk 0:01:27.8]} 22... Rfb8 {[%clk 0:00:41.4]} 23. Rd2 {[%clk 0:01:25.4]}
23... Kf8 {[%clk 0:00:39.5]} 24. f4 {[%clk 0:01:24.5]} 24... Ke7 {[%clk
0:00:39.4]} 25. Kf2 {[%clk 0:01:24.5]} 25... f5 {[%clk 0:00:39.9]} 26. Bb1
{[%clk 0:01:17.1]} 26... Nc8 {[%clk 0:00:39.4]} 27. Nc4 {[%clk 0:01:11.3]} 27...
Rb5 {[%clk 0:00:39.2]} 28. Ne3 {[%clk 0:00:58.7]} 28... Rab8 {[%clk 0:00:39]}
29. Nxd5+ {[%clk 0:00:52.8]} 29... cxd5 {[%clk 0:00:39]} 30. Rc7+ {[%clk
0:00:49.3]} 30... Kf8 {[%clk 0:00:39.5]} 31. Bd3 {[%clk 0:00:38.4]} 31... R5b7
{[%clk 0:00:35.6]} 32. Rxb7 {[%clk 0:00:36.2]} 32... Rxb7 {[%clk 0:00:36.5]} 33.
Ba6 {[%clk 0:00:32.7]} 33... Rc7 {[%clk 0:00:35.6]} 34. Rd4 {[%clk 0:00:28.6]}
34... Nb6 {[%clk 0:00:35.3]} 35. Rb4 {[%clk 0:00:28.9]} 35... Rc2+ {[%clk
0:00:29.8]} 36. Kg3 {[%clk 0:00:28.5]} 36... Nc4 {[%clk 0:00:29.5]} 37. Bxc4
{[%clk 0:00:24.9]} 37... dxc4 {[%clk 0:00:28.3]} 38. Rxa4 {[%clk 0:00:16.4]}
38... c3 {[%clk 0:00:28.8]} 39. bxc3 {[%clk 0:00:15.9]} 39... Rxc3+ {[%clk
0:00:29.1]} 40. Kf2 {[%clk 0:00:16.6]} 40... Kf7 {[%clk 0:00:29.3]} 41. Ra7+
{[%clk 0:00:14.5]} 41... Kf8 {[%clk 0:00:29.3]} 42. Ra6 {[%clk 0:00:15.4]} 42...
Kf7 {[%clk 0:00:28]} 43. a4 {[%clk 0:00:14.8]} 43... Ra3 {[%clk 0:00:28.2]} 44.
a5 {[%clk 0:00:14.7]} 44... h6 {[%clk 0:00:28.4]} 45. g3 {[%clk 0:00:14.8]}
45... g5 {[%clk 0:00:27.6]} 46. Ra7+ {[%clk 0:00:14.2]} 46... Kf8 {[%clk
0:00:25.8]} 47. a6 {[%clk 0:00:14.4]} 47... gxf4 {[%clk 0:00:22.9]} 48. gxf4
{[%clk 0:00:14.4]} 48... h5 {[%clk 0:00:22.7]} 49. Ra8+ {[%clk 0:00:12.1]} 49...
Kf7 {[%clk 0:00:22.8]} 50. a7 {[%clk 0:00:12.7]} 50... Kg7 {[%clk 0:00:22.5]}
51. Ke2 {[%clk 0:00:11.5]} 51... h4 {[%clk 0:00:21.2]} 52. Kd2 {[%clk
0:00:11.6]} 52... h3 {[%clk 0:00:21.3]} 53. Kc2 {[%clk 0:00:12.1]} 53... Ra2+
{[%clk 0:00:20.5]} 54. Kb3 {[%clk 0:00:12.3]} 54... Ra1 {[%clk 0:00:21.1]} 55.
Kb4 {[%clk 0:00:12.4]} 55... Rb1+ {[%clk 0:00:21.4]} 56. Kc5 {[%clk 0:00:12.9]}
56... Ra1 {[%clk 0:00:20.7]} 57. Kd6 {[%clk 0:00:13.5]} 57... Ra6+ {[%clk
0:00:21]} 58. Ke7 {[%clk 0:00:14.2]} 58... Kh7 {[%clk 0:00:20.7]} 59. Kf6 {[%clk
0:00:13.4]} 59... Ra1 {[%clk 0:00:12.8]} 60. Kxe6 {[%clk 0:00:12.8]} 60... Ra6+
{[%clk 0:00:10.8]} 61. Kxf5 {[%clk 0:00:12.8]} 61... Rf6+ {[%clk 0:00:10.9]} 62.
exf6 {[%clk 0:00:12.3]} 62... Kh6 {[%clk 0:00:10]} 63. Rh8# {[%clk 0:00:13]} 1-0

[Event "Early-Titled-Tuesday-Blitz-February-27-2024"]
[Site "Chess.com"]
[Date "2024.02.27"]
[Round "1"]
[White "HelvertHernandez"]
[Black "Viacheslav92"]
[Result "0-1"]
[WhiteElo "1997"]
[BlackElo "2553"]
[TimeControl "180+1"]
[EndTime "8:08:20 PST"]
[Termination "Viacheslav92 won on time"]

1. e4 {[%clk 0:02:58.8]} 1... c5 {[%clk 0:02:57.8]} 2. Nf3 {[%clk 0:02:58.1]}
2... d6 {[%clk 0:02:57.7]} 3. d4 {[%clk 0:02:57.8]} 3... cxd4 {[%clk 0:02:58.6]}
4. Nxd4 {[%clk 0:02:57.3]} 4... Nf6 {[%clk 0:02:59.1]} 5. Nc3 {[%clk 0:02:57.2]}
5... a6 {[%clk 0:02:59.3]} 6. Be3 {[%clk 0:02:56.9]} 6... e5 {[%clk 0:02:58.8]}
7. Nb3 {[%clk 0:02:56.2]} 7... Be6 {[%clk 0:02:59.4]} 8. f3 {[%clk 0:02:56]}
8... Nbd7 {[%clk 0:02:58.1]} 9. Qd2 {[%clk 0:02:55.9]} 9... b5 {[%clk
0:02:58.6]} 10. O-O-O {[%clk 0:02:50.6]} 10... Rc8 {[%clk 0:02:55.4]} 11. Kb1
{[%clk 0:02:49.9]} 11... Nb6 {[%clk 0:02:55.3]} 12. g4 {[%clk 0:02:48.2]} 12...
Be7 {[%clk 0:02:35.1]} 13. g5 {[%clk 0:02:43.3]} 13... Nh5 {[%clk 0:02:35.2]}
14. h4 {[%clk 0:02:42.7]} 14... O-O {[%clk 0:02:33.6]} 15. Nd5 {[%clk
0:02:27.3]} 15... Bxd5 {[%clk 0:02:28.2]} 16. exd5 {[%clk 0:02:26.9]} 16... Nc4
{[%clk 0:02:28.7]} 17. Bxc4 {[%clk 0:02:23.9]} 17... Rxc4 {[%clk 0:02:29.6]} 18.
Na5 {[%clk 0:02:20.4]} 18... Rc8 {[%clk 0:02:22]} 19. Nc6 {[%clk 0:02:19.2]}
19... Qd7 {[%clk 0:02:21.2]} 20. Qa5 {[%clk 0:02:08]} 20... Ra8 {[%clk
0:02:19.4]} 21. Rhf1 {[%clk 0:01:54.1]} 21... Rfc8 {[%clk 0:02:12.8]} 22. f4
{[%clk 0:01:52]} 22... exf4 {[%clk 0:02:08.8]} 23. Bxf4 {[%clk 0:01:51.6]} 23...
Bf8 {[%clk 0:02:08.9]} 24. Bh2 {[%clk 0:01:45.1]} 24... g6 {[%clk 0:02:08.4]}
25. Qd2 {[%clk 0:01:36.4]} 25... Bg7 {[%clk 0:02:04.5]} 26. Qb4 {[%clk
0:01:25.6]} 26... Bf8 {[%clk 0:02:03]} 27. Rf2 {[%clk 0:01:20.2]} 27... a5
{[%clk 0:01:53]} 28. Qxb5 {[%clk 0:01:08.8]} 28... Rcb8 {[%clk 0:01:44.5]} 29.
Qd3 {[%clk 0:00:58.5]} 29... Rb7 {[%clk 0:01:33.2]} 30. Qf3 {[%clk 0:00:53.4]}
30... Bg7 {[%clk 0:01:29.1]} 31. c3 {[%clk 0:00:51.2]} 31... a4 {[%clk
0:01:27.7]} 32. a3 {[%clk 0:00:45]} 32... Qc7 {[%clk 0:01:22.1]} 33. Rdf1 {[%clk
0:00:41.1]} 33... Rf8 {[%clk 0:01:21.1]} 34. Ka2 {[%clk 0:00:34.8]} 34... Qb6
{[%clk 0:01:15.7]} 35. Nb4 {[%clk 0:00:34.1]} 35... Qc5 {[%clk 0:01:11.9]} 36.
Qd3 {[%clk 0:00:30.3]} 36... Re7 {[%clk 0:01:08.4]} 37. Re2 {[%clk 0:00:26.6]}
37... Rfe8 {[%clk 0:00:59.1]} 38. Rfe1 {[%clk 0:00:26]} 38... Rxe2 {[%clk
0:00:52.6]} 39. Rxe2 {[%clk 0:00:26.6]} 39... Rb8 {[%clk 0:00:47.8]} 40. Qe3
{[%clk 0:00:21.4]} 40... Qc4+ {[%clk 0:00:46.7]} 41. Kb1 {[%clk 0:00:19.9]}
41... Bf8 {[%clk 0:00:43.2]} 42. Qd2 {[%clk 0:00:16.2]} 42... Ng7 {[%clk
0:00:41.5]} 43. Re3 {[%clk 0:00:15]} 43... Nf5 {[%clk 0:00:41.7]} 44. Rd3 {[%clk
0:00:14.8]} 44... Qe4 {[%clk 0:00:39.5]} 45. Ka2 {[%clk 0:00:13.6]} 45... Qc4+
{[%clk 0:00:38.4]} 46. Ka1 {[%clk 0:00:12.3]} 46... Qe4 {[%clk 0:00:38.1]} 47.
Ka2 {[%clk 0:00:10.2]} 47... Qc4+ {[%clk 0:00:35.6]} 48. Ka1 {[%clk 0:00:10.4]}
48... Qxh4 {[%clk 0:00:36.1]} 49. Ka2 {[%clk 0:00:10]} 49... Qc4+ {[%clk
0:00:34.5]} 50. Ka1 {[%clk 0:00:09.9]} 50... h5 {[%clk 0:00:31.7]} 51. Kb1
{[%clk 0:00:09.9]} 51... h4 {[%clk 0:00:30.8]} 52. Kc2 {[%clk 0:00:09.7]} 52...
Qe4 {[%clk 0:00:29.7]} 53. Kb1 {[%clk 0:00:09.7]} 53... h3 {[%clk 0:00:28.8]}
54. Ka2 {[%clk 0:00:09.9]} 54... Qg2 {[%clk 0:00:28.3]} 55. Nc2 {[%clk
0:00:03.6]} 55... Re8 {[%clk 0:00:23.3]} 56. Nd4 {[%clk 0:00:02.3]} 56... Nxd4
{[%clk 0:00:22.3]} 57. Rxd4 {[%clk 0:00:03]} 57... Re2 {[%clk 0:00:21.7]} 58.
Qc1 {[%clk 0:00:03.1]} 58... Qxh2 {[%clk 0:00:19.8]} 59. Rd1 {[%clk 0:00:02.5]}
59... Qg2 {[%clk 0:00:19.5]} 60. Qb1 {[%clk 0:00:02.2]} 60... h2 {[%clk
0:00:19]} 0-1